[Event "MČR 2022 blesk"]
[Site "Turnov, Czech Republic"]
[Date "2022.09.10"]
[Round "6.3"]
[White "Balacek, Tadeas"]
[Black "Sykora, Marek"]
[Result "1-0"]
[TimeControl "2x 3 min + 2s/move"]
[WhiteElo "2257"]
[BlackElo "2084"]

1. d4 {[%clk 00:03:02]} d5 {[%clk 00:03:02]} 2. c4 {[%clk 00:03:02]} c6 {[%clk
00:03:02]} 3. cxd5 {[%clk 00:03:03]} cxd5 {[%clk 00:03:03]} {[%emt 00:00:18]} 4.
Bf4 {[%clk 00:03:04]} Nf6 {[%clk 00:02:50]} {[%emt 00:00:04]} 5. Nc3 {[%clk
00:03:04]} e6 {[%clk 00:02:47]} {[%emt 00:00:05]} 6. e3 {[%clk 00:03:05]} Bd6
{[%clk 00:02:36]} {[%emt 00:00:13]} 7. Bxd6 {[%clk 00:03:02]} {[%emt 00:00:07]}
Qxd6 {[%clk 00:02:37]} 8. f4 {[%clk 00:03:01]} {[%emt 00:00:05]} O-O {[%clk
00:02:32]} {[%emt 00:00:13]} 9. Bd3 {[%clk 00:03:01]} b6 {[%clk 00:02:27]}
{[%emt 00:00:13]} 10. Nf3 {[%clk 00:02:47]} {[%emt 00:00:09]} Ba6 {[%clk
00:02:24]} 11. Bxa6 {[%clk 00:02:47]} Nxa6 {[%clk 00:02:24]} {[%emt 00:00:06]}
12. a3 {[%clk 00:02:48]} Nc7 {[%clk 00:02:15]} {[%emt 00:00:08]} 13. Qd3 {[%clk
00:02:45]} {[%emt 00:00:13]} Rac8 {[%clk 00:02:03]} {[%emt 00:00:06]} 14. O-O
{[%clk 00:02:44]} {[%emt 00:00:18]} Nce8 {[%clk 00:01:35]} {[%emt 00:00:14]} 15.
Rac1 {[%clk 00:02:41]} {[%emt 00:00:09]} Qb8 {[%clk 00:01:32]} {[%emt
00:00:05]} 16. Ne5 {[%clk 00:02:25]} {[%emt 00:00:29]} Nd6 {[%clk 00:01:27]} 17.
Nb5 {[%clk 00:02:21]} Rxc1 {[%clk 00:01:17]} {[%emt 00:00:11]} 18. Rxc1 {[%clk
00:02:22]} {[%emt 00:00:09]} Rc8 {[%clk 00:01:18]} 19. Rxc8+ {[%clk 00:02:17]}
{[%emt 00:00:08]} Nxc8 {[%clk 00:01:18]} 20. f5 {[%clk 00:01:08]} {[%emt
00:01:04]} a6 {[%clk 00:01:12]} {[%emt 00:00:09]} 21. Nc3 {[%clk 00:01:09]} b5
{[%clk 00:01:06]} {[%emt 00:00:13]} 22. fxe6 {[%clk 00:01:05]} {[%emt
00:00:04]} fxe6 {[%clk 00:01:07]} 23. e4 {[%clk 00:01:02]} {[%emt 00:00:09]}
Nd6 {[%clk 00:00:54]} {[%emt 00:00:19]} 24. exd5 {[%clk 00:01:01]} exd5 {[%clk
00:00:52]} 25. Qf3 {[%clk 00:01:02]} Qb7 {[%clk 00:00:48]} {[%emt 00:00:09]} 26.
h3 {[%clk 00:00:58]} {[%emt 00:00:09]} Nde4 {[%clk 00:00:46]} 27. Qf5 {[%clk
00:00:48]} {[%emt 00:00:41]} 1-0

[Event "MČR 2022 blesk"]
[Site "Turnov, Czech Republic"]
[Date "2022.09.10"]
[Round "6.5"]
[White "Vykouk, Jan"]
[Black "Stocek, Jiri"]
[Result "1/2-1/2"]
[TimeControl "2x 3 min + 2s/move"]
[WhiteElo "2352"]
[BlackElo "2384"]

1. e4 {[%clk 00:03:01]} {[%emt 00:00:05]} Nf6 {[%clk 00:03:03]} 2. e5 {[%clk
00:03:02]} {[%emt 00:00:09]} Nd5 {[%clk 00:03:04]} 3. d4 {[%clk 00:02:59]} d6
{[%clk 00:03:05]} 4. Nf3 {[%clk 00:02:59]} {[%emt 00:00:13]} dxe5 {[%clk
00:03:06]} 5. Nxe5 {[%clk 00:02:59]} c6 {[%clk 00:03:06]} 6. Be2 {[%clk
00:03:00]} {[%emt 00:00:09]} Bf5 {[%clk 00:03:07]} 7. O-O {[%clk 00:02:59]} Nd7
{[%clk 00:03:07]} 8. Nf3 {[%clk 00:02:44]} {[%emt 00:00:10]} e6 {[%clk
00:03:07]} 9. c4 {[%clk 00:02:40]} {[%emt 00:00:06]} N5f6 {[%clk 00:03:07]} 10.
Nc3 {[%clk 00:02:40]} {[%emt 00:00:06]} Ne4 {[%clk 00:02:53]} {[%emt 00:00:13]}
11. Nxe4 {[%clk 00:02:32]} {[%emt 00:00:10]} Bxe4 {[%clk 00:02:54]} {[%emt
00:00:06]} 12. Ng5 {[%emt 00:00:10]} Bg6 {[%clk 00:02:54]} {[%emt 00:00:06]} 13.
d5 {[%clk 00:02:20]} exd5 {[%clk 00:02:48]} {[%emt 00:00:05]} 14. cxd5 {[%clk
00:02:21]} Be7 {[%clk 00:02:48]} {[%emt 00:00:19]} 15. dxc6 {[%clk 00:01:46]}
{[%emt 00:00:21]} bxc6 {[%clk 00:02:49]} 16. Nf3 {[%clk 00:01:17]} {[%emt
00:00:37]} O-O {[%clk 00:02:48]} 17. Be3 {[%clk 00:01:15]} {[%emt 00:00:05]}
Bf6 {[%clk 00:02:40]} {[%emt 00:00:10]} 18. Bd4 {[%clk 00:01:13]} Re8 {[%clk
00:02:31]} {[%emt 00:00:15]} 19. Rc1 {[%clk 00:01:05]} {[%emt 00:00:07]} Bxd4
{[%clk 00:01:46]} {[%emt 00:00:52]} 20. Nxd4 {[%clk 00:01:05]} Ne5 {[%clk
00:01:36]} {[%emt 00:04:29]} 21. Bf3 {[%clk 00:00:06]} {[%emt 00:01:27]} Nxf3+
{[%clk 00:01:25]} 22. Nxf3 {[%clk 00:00:07]} Qa5 {[%clk 00:01:20]} 23. a3
{[%clk 00:00:06]} Rab8 {[%clk 00:01:15]} 24. Qd6 {[%clk 00:00:03]} {[%emt
00:00:04]} Rxb2 {[%clk 00:00:55]} 25. Qxc6 {[%clk 00:00:04]} Rbb8 {[%clk
00:00:52]} 26. Nh4 {[%clk 00:00:04]} Qxa3 {[%clk 00:00:20]} 27. Nxg6 {[%clk
00:00:05]} hxg6 {[%clk 00:00:21]} 28. Ra1 {[%clk 00:00:06]} Qe7 {[%clk
00:00:20]} 29. g3 {[%clk 00:00:04]} Rb6 {[%clk 00:00:18]} 30. Qa4 {[%clk
00:00:05]} a6 {[%clk 00:00:16]} 31. Qc4 {[%clk 00:00:05]} Qb7 {[%clk 00:00:14]}
32. Ra5 {[%clk 00:00:04]} Rb5 {[%clk 00:00:14]} 33. Rxb5 {[%clk 00:00:04]} axb5
{[%clk 00:00:14]} 34. Qb4 {[%clk 00:00:05]} Re4 {[%clk 00:00:12]} 35. Qd6
{[%clk 00:00:04]} Re8 {[%clk 00:00:05]} 36. Rb1 {[%clk 00:00:05]} {[%emt
00:00:23]} Qe4 {[%clk 00:00:03]} {[%emt 00:00:05]} 37. Rf1 {[%clk 00:00:04]}
Qc4 {[%clk 00:00:04]} 38. h4 {[%clk 00:00:05]} Qe4 {[%clk 00:00:04]} 1/2-1/2

[Event "MČR 2022 blesk"]
[Site "Turnov, Czech Republic"]
[Date "2022.09.10"]
[Round "6.6"]
[White "Neuman, Petr"]
[Black "Kraus, Tomas"]
[Result "1/2-1/2"]
[TimeControl "2x 3 min + 2s/move"]
[WhiteElo "2352"]
[BlackElo "2389"]

1. e4 {[%clk 00:03:02]} {[%emt 00:00:08]} c5 {[%clk 00:03:02]} 2. Nf3 {[%clk
00:03:02]} e6 {[%clk 00:03:02]} 3. g3 {[%clk 00:03:02]} Nc6 {[%clk 00:03:01]} 4.
Bg2 {[%clk 00:03:03]} {[%emt 00:00:34]} Nf6 {[%clk 00:02:59]} 5. Qe2 {[%clk
00:03:04]} e5 {[%clk 00:02:56]} 6. O-O {[%clk 00:02:59]} Be7 {[%clk 00:02:58]}
7. c3 {[%clk 00:02:42]} O-O {[%clk 00:02:58]} 8. d3 {[%clk 00:02:41]} h6 {[%clk
00:02:47]} 9. Na3 {[%clk 00:02:40]} Re8 {[%clk 00:02:40]} 10. Nc4 {[%clk
00:02:41]} Bf8 {[%clk 00:02:32]} 11. Ne3 {[%clk 00:02:17]} {[%emt 00:00:10]} d5
{[%clk 00:02:26]} {[%emt 00:00:06]} 12. Nh4 {[%clk 00:01:57]} {[%emt 00:00:24]}
Be6 {[%clk 00:01:59]} {[%emt 00:00:26]} 13. Bd2 {[%clk 00:01:35]} {[%emt
00:00:24]} g6 {[%clk 00:01:28]} {[%emt 00:00:37]} 14. Be1 {[%clk 00:01:13]}
{[%emt 00:00:20]} d4 {[%clk 00:01:18]} {[%emt 00:00:13]} 15. Nc2 {[%clk
00:01:05]} {[%emt 00:00:19]} Bg7 {[%clk 00:01:08]} {[%emt 00:00:10]} 16. c4
{[%clk 00:01:04]} a6 {[%clk 00:01:00]} {[%emt 00:00:05]} 17. f4 {[%clk
00:01:00]} {[%emt 00:00:06]} exf4 {[%clk 00:00:56]} {[%emt 00:00:10]} 18. gxf4
{[%clk 00:01:01]} Bg4 {[%clk 00:00:53]} {[%emt 00:00:09]} 19. Qf2 {[%clk
00:00:57]} {[%emt 00:00:05]} Qd7 {[%clk 00:00:45]} {[%emt 00:00:04]} 20. b4
{[%clk 00:00:39]} {[%emt 00:00:20]} b6 {[%clk 00:00:47]} 21. Rb1 {[%clk
00:00:34]} {[%emt 00:00:10]} Rab8 {[%clk 00:00:44]} {[%emt 00:00:06]} 22. a3
{[%clk 00:00:29]} {[%emt 00:00:11]} Kh7 {[%clk 00:00:42]} 23. Bd2 {[%clk
00:00:28]} Nh5 {[%clk 00:00:31]} {[%emt 00:00:12]} 24. Kh1 {[%clk 00:00:25]}
{[%emt 00:00:05]} a5 {[%clk 00:00:17]} {[%emt 00:00:16]} 25. b5 {[%clk
00:00:24]} {[%emt 00:00:06]} Ne7 {[%clk 00:00:14]} {[%emt 00:00:05]} 26. Rg1
{[%clk 00:00:25]} Bh3 {[%clk 00:00:10]} {[%emt 00:00:08]} 27. Bf3 {[%clk
00:00:23]} {[%emt 00:00:05]} Nf6 {[%clk 00:00:06]} {[%emt 00:00:12]} 28. Rg3
{[%clk 00:00:23]} Be6 {[%clk 00:00:04]} 29. Rbg1 {[%clk 00:00:23]} {[%emt
00:00:05]} Rg8 {[%clk 00:00:06]} 30. Qg2 {[%clk 00:00:18]} Bh8 {[%clk
00:00:06]} {[%emt 00:00:05]} 31. Qf2 {[%emt 00:00:08]} Qc7 32. e5 {[%clk
00:00:10]} Nd7 {[%clk 00:00:05]} {[%emt 00:00:10]} 33. Be4 {[%clk 00:00:11]}
Nf8 {[%clk 00:00:03]} 34. f5 {[%clk 00:00:11]} {[%emt 00:00:06]} gxf5 {[%clk
00:00:03]} 35. Nxf5 {[%clk 00:00:11]} {[%emt 00:00:12]} Nxf5 {[%clk 00:00:03]}
36. Bxf5+ {[%clk 00:00:12]} Ng6 {[%clk 00:00:04]} 37. Bxe6 {[%clk 00:00:08]}
{[%emt 00:00:05]} fxe6 {[%clk 00:00:06]} 38. Qg2 {[%clk 00:00:09]} Qb7 {[%clk
00:00:06]} 39. Ne1 {[%clk 00:00:09]} Qxg2+ {[%clk 00:00:03]} {[%emt 00:00:05]}
40. R1xg2 {[%clk 00:00:09]} Nxe5 {[%clk 00:00:05]} {[%emt 00:00:05]} 41. Rxg8
{[%clk 00:00:10]} Rxg8 {[%clk 00:00:06]} 42. Re2 {[%clk 00:00:11]} Rf8 {[%clk
00:00:05]} {[%emt 00:00:05]} 43. Kg2 {[%clk 00:00:12]} Rf5 {[%clk 00:00:06]} 44.
Kg3 {[%clk 00:00:09]} {[%emt 00:00:05]} Bf6 45. Bf4 Kg6 {[%clk 00:00:05]}
{[%emt 00:00:08]} 46. Bxe5 {[%clk 00:00:10]} Bxe5+ {[%clk 00:00:05]} {[%emt
00:00:28]} 47. Kg2 {[%clk 00:00:11]} Kf6 {[%clk 00:00:04]} 48. Nf3 Bf4 49. Re4
{[%clk 00:00:13]} e5 50. a4 {[%clk 00:00:14]} Be3 {[%clk 00:00:06]} 51. Rg4
{[%clk 00:00:15]} Bg5 {[%clk 00:00:05]} {[%emt 00:00:05]} 52. h4 {[%clk
00:00:15]} Be3 {[%clk 00:00:05]} 53. Rg8 {[%clk 00:00:16]} e4 {[%clk 00:00:04]}
54. dxe4 {[%clk 00:00:18]} Rf4 {[%clk 00:00:05]} 55. Rb8 {[%clk 00:00:17]} Rxe4
{[%emt 00:00:04]} 56. Rxb6+ {[%clk 00:00:18]} Kf5 {[%clk 00:00:04]} 57. Rd6
{[%clk 00:00:18]} Re6 {[%clk 00:00:03]} {[%emt 00:00:04]} 58. Rd5+ {[%clk
00:00:19]} Kf6 {[%clk 00:00:05]} 59. Rxc5 {[%clk 00:00:20]} Rd6 {[%clk
00:00:06]} 60. Rd5 {[%clk 00:00:18]} {[%emt 00:00:09]} Rxd5 {[%clk 00:00:05]}
61. cxd5 {[%clk 00:00:20]} Ke7 {[%clk 00:00:06]} 62. b6 {[%emt 00:00:30]} Kd6
{[%clk 00:00:07]} 63. Ne1 {[%clk 00:00:15]} Kxd5 {[%clk 00:00:05]} 64. b7
{[%clk 00:00:16]} Bf4 {[%clk 00:00:07]} 65. Kf3 {[%clk 00:00:17]} Bd6 {[%clk
00:00:05]} 66. Nd3 {[%clk 00:00:18]} {[%emt 00:00:35]} Kc6 {[%clk 00:00:05]} 67.
Ke4 {[%clk 00:00:19]} Kxb7 {[%clk 00:00:06]} 68. h5 {[%clk 00:00:20]} {[%emt
00:00:04]} Kc7 {[%clk 00:00:05]} 69. Kxd4 Kc6 70. Nb2 {[%clk 00:00:20]} Bb4
{[%clk 00:00:06]} 71. Nc4 {[%clk 00:00:21]} Be1 {[%clk 00:00:05]} {[%emt
00:00:05]} 72. Ne5+ {[%clk 00:00:21]} Kc7 {[%clk 00:00:03]} 73. Ng4 {[%clk
00:00:21]} Bd2 {[%clk 00:00:04]} {[%emt 00:00:05]} 74. Kd5 {[%clk 00:00:23]}
Kd7 {[%clk 00:00:04]} 75. Nf6+ {[%clk 00:00:24]} Kc7 {[%clk 00:00:05]} 76. Ne4
{[%clk 00:00:25]} Be1 {[%clk 00:00:05]} {[%emt 00:00:04]} 77. Kc5 {[%clk
00:00:25]} Kd7 {[%clk 00:00:04]} 78. Kd5 {[%clk 00:00:24]} Kc7 {[%clk
00:00:05]} {[%emt 00:00:07]} 79. Nd6 {[%clk 00:00:25]} Kd7 {[%clk 00:00:05]} 80.
Nf5 {[%clk 00:00:26]} Bd2 {[%clk 00:00:05]} 81. Ke5 {[%clk 00:00:26]} Kc6
{[%emt 00:00:05]} 82. Nd4+ {[%clk 00:00:27]} Kd7 {[%clk 00:00:04]} 83. Kf5
{[%clk 00:00:27]} Kd6 {[%clk 00:00:04]} {[%emt 00:00:05]} 84. Kg6 {[%clk
00:00:28]} Ke7 {[%clk 00:00:03]} 85. Nf5+ {[%clk 00:00:28]} Ke6 {[%clk
00:00:04]} 86. Nxh6 {[%clk 00:00:29]} Bxh6 {[%clk 00:00:03]} {[%emt 00:00:04]}
87. Kxh6 {[%clk 00:00:30]} Kf6 {[%clk 00:00:05]} 88. Kh7 {[%clk 00:00:31]} Kf7
{[%clk 00:00:06]} 89. h6 {[%clk 00:00:33]} Kf8 {[%clk 00:00:07]} {[%emt
00:00:04]} 90. Kg6 {[%clk 00:00:34]} Kg8 {[%clk 00:00:08]} 1/2-1/2

[Event "MČR 2022 blesk"]
[Site "Turnov, Czech Republic"]
[Date "2022.09.10"]
[Round "6.7"]
[White "Finek, Vaclav"]
[Black "Petr, Martin"]
[Result "1-0"]
[TimeControl "2x 3 min + 2s/move"]
[WhiteElo "2101"]
[BlackElo "2446"]

1. d4 {[%clk 00:03:02]} d5 {[%clk 00:03:03]} 2. c4 {[%clk 00:03:03]} e6 {[%clk
00:03:05]} 3. Nf3 {[%clk 00:03:04]} Nf6 {[%clk 00:03:05]} {[%emt 00:00:05]} 4.
g3 {[%clk 00:03:05]} dxc4 {[%clk 00:03:02]} {[%emt 00:00:05]} 5. Bg2 {[%clk
00:02:50]} {[%emt 00:00:14]} c5 {[%clk 00:03:03]} 6. O-O {[%clk 00:02:45]}
{[%emt 00:00:09]} Nc6 {[%clk 00:03:03]} 7. dxc5 {[%clk 00:02:39]} {[%emt
00:00:13]} Qxd1 {[%clk 00:03:03]} 8. Rxd1 {[%clk 00:02:40]} {[%emt 00:00:22]}
Bxc5 {[%clk 00:03:04]} 9. Nbd2 {[%clk 00:02:34]} c3 {[%clk 00:03:04]} 10. bxc3
{[%clk 00:02:35]} Bd7 {[%clk 00:02:55]} 11. Bb2 {[%clk 00:02:31]} {[%emt
00:00:14]} O-O {[%clk 00:02:47]} {[%emt 00:00:08]} 12. c4 {[%clk 00:02:30]}
Rfd8 {[%clk 00:02:30]} {[%emt 00:00:20]} 13. Nb3 {[%clk 00:02:22]} {[%emt
00:00:06]} Be7 {[%clk 00:02:30]} {[%emt 00:00:04]} 14. Nfd4 {[%clk 00:02:15]}
{[%emt 00:00:10]} Rac8 {[%clk 00:02:10]} {[%emt 00:00:19]} 15. Rac1 {[%clk
00:02:12]} {[%emt 00:00:05]} b6 {[%clk 00:01:45]} {[%emt 00:00:27]} 16. Nb5
{[%clk 00:02:06]} {[%emt 00:00:08]} Be8 {[%clk 00:01:24]} {[%emt 00:00:23]} 17.
Rxd8 {[%clk 00:01:44]} {[%emt 00:00:47]} Rxd8 {[%clk 00:01:26]} 18. Bxc6 {[%clk
00:01:36]} Bxc6 {[%clk 00:01:27]} 19. Nxa7 {[%clk 00:01:36]} Bb7 {[%clk
00:01:24]} 20. Nb5 {[%clk 00:01:34]} Ne4 {[%clk 00:01:24]} {[%emt 00:00:14]} 21.
f3 {[%clk 00:01:24]} {[%emt 00:00:07]} Nc5 {[%clk 00:01:22]} 22. Kf2 {[%clk
00:01:13]} {[%emt 00:00:19]} f6 {[%clk 00:01:22]} 23. Ke1 {[%clk 00:01:11]} Kf7
{[%clk 00:01:12]} {[%emt 00:00:07]} 24. Bd4 {[%clk 00:00:49]} {[%emt 00:00:37]}
Ra8 {[%clk 00:01:04]} 25. Bxc5 {[%clk 00:00:44]} {[%emt 00:00:12]} bxc5 {[%clk
00:01:00]} 26. Rc2 {[%clk 00:00:45]} Bc6 {[%clk 00:00:51]} {[%emt 00:00:14]} 27.
Kd2 {[%clk 00:00:42]} {[%emt 00:00:05]} e5 {[%clk 00:00:50]} {[%emt 00:00:04]}
28. Nc3 {[%clk 00:00:36]} {[%emt 00:00:07]} f5 {[%clk 00:00:46]} {[%emt
00:00:06]} 29. e4 {[%clk 00:00:35]} {[%emt 00:00:09]} Bg5+ {[%clk 00:00:46]} 30.
Ke2 {[%clk 00:00:36]} fxe4 {[%clk 00:00:27]} {[%emt 00:00:13]} 31. Nxe4 {[%clk
00:00:37]} Bxe4 {[%clk 00:00:20]} {[%emt 00:00:43]} 32. fxe4 {[%clk 00:00:38]}
Be7 {[%clk 00:00:21]} 33. Nc1 {[%clk 00:00:36]} Ke6 {[%clk 00:00:18]} 34. Nd3
{[%clk 00:00:37]} Ra3 {[%clk 00:00:17]} 35. Rb2 {[%clk 00:00:35]} Kd6 {[%clk
00:00:16]} {[%emt 00:00:39]} 36. Kd2 {[%clk 00:00:33]} Bg5+ {[%clk 00:00:15]}
37. Kc2 {[%clk 00:00:34]} Ra6 {[%clk 00:00:15]} 38. Kb1 {[%clk 00:00:27]} Be3
{[%clk 00:00:16]} 39. Rb3 {[%clk 00:00:26]} Bd4 {[%clk 00:00:17]} 40. Nb2
{[%clk 00:00:24]} Kc7 {[%clk 00:00:16]} 41. Nd1 {[%clk 00:00:21]} Rf6 {[%clk
00:00:16]} 42. Rd3 {[%clk 00:00:22]} {[%emt 00:00:08]} Kb6 {[%clk 00:00:17]} 43.
Rb3+ {[%clk 00:00:22]} Ka5 {[%clk 00:00:16]} 44. Rb5+ {[%clk 00:00:22]} Ka6
{[%clk 00:00:17]} {[%emt 00:00:07]} 45. Kc2 {[%clk 00:00:23]} Rf3 {[%clk
00:00:17]} 46. Rb8 {[%clk 00:00:23]} Ka7 {[%clk 00:00:15]} {[%emt 00:00:27]} 47.
Rg8 {[%clk 00:00:23]} Ra3 {[%clk 00:00:16]} 48. Rxg7+ {[%clk 00:00:24]} Kb6
{[%clk 00:00:17]} 49. Rxh7 {[%clk 00:00:24]} Rxa2+ {[%clk 00:00:18]} 50. Kd3
{[%clk 00:00:25]} Ra3+ {[%clk 00:00:18]} 51. Ke2 {[%clk 00:00:26]} Ra2+ {[%clk
00:00:18]} 52. Ke1 {[%clk 00:00:26]} Ka6 {[%clk 00:00:15]} {[%emt 00:00:09]} 53.
Rh8 {[%clk 00:00:22]} Rg2 {[%clk 00:00:16]} 54. Kf1 {[%clk 00:00:18]} Rd2
{[%clk 00:00:17]} 55. Ke1 {[%clk 00:00:19]} Rg2 {[%clk 00:00:18]} 56. h4 {[%clk
00:00:16]} {[%emt 00:00:05]} Rxg3 {[%clk 00:00:19]} 57. h5 {[%clk 00:00:18]}
{[%emt 00:00:04]} Rh3 {[%clk 00:00:19]} 58. h6 {[%clk 00:00:18]} {[%emt
00:00:17]} Kb7 {[%clk 00:00:18]} 59. h7 {[%clk 00:00:19]} Rh4 {[%clk 00:00:18]}
60. Kf1 {[%clk 00:00:20]} Rh1+ {[%clk 00:00:18]} 61. Kg2 {[%clk 00:00:21]} Rh6
{[%clk 00:00:18]} 62. Kf3 {[%clk 00:00:22]} {[%emt 00:00:04]} Rh1 {[%clk
00:00:14]} 63. Kg4 {[%clk 00:00:21]} Rxd1 {[%clk 00:00:14]} {[%emt 00:00:04]}
64. Re8 {[%clk 00:00:16]} Rh1 {[%clk 00:00:14]} {[%emt 00:00:14]} 65. h8=Q
{[%clk 00:00:17]} Rxh8 {[%clk 00:00:15]} 66. Rxh8 {[%clk 00:00:17]} Kb6 {[%clk
00:00:16]} 67. Kf5 {[%clk 00:00:18]} {[%emt 00:00:04]} Ka5 {[%clk 00:00:16]} 68.
Rb8 {[%clk 00:00:18]} Ka4 {[%clk 00:00:17]} 69. Ke6 {[%clk 00:00:19]} Bc3
{[%clk 00:00:18]} {[%emt 00:00:04]} 70. Kd5 {[%clk 00:00:20]} Bd4 {[%clk
00:00:18]} 71. Rb5 {[%clk 00:00:21]} 1-0

[Event "MČR 2022 blesk"]
[Site "Turnov, Czech Republic"]
[Date "2022.09.10"]
[Round "7.1"]
[White "Vykouk, Jan"]
[Black "Plat, Vojtech"]
[Result "0-1"]
[TimeControl "2x 3 min + 2s/move"]
[WhiteElo "2352"]
[BlackElo "2484"]

1. Nf3 {[%clk 00:03:02]} {[%emt 00:00:11]} d6 {[%clk 00:03:04]} 2. d4 {[%clk
00:03:02]} Bg4 {[%clk 00:03:05]} 3. b3 {[%clk 00:02:59]} {[%emt 00:00:04]} Nd7
{[%clk 00:03:06]} 4. Bb2 {[%clk 00:02:59]} {[%emt 00:00:04]} c6 {[%clk
00:03:07]} 5. e3 {[%clk 00:03:00]} {[%emt 00:00:05]} Ngf6 {[%clk 00:03:08]} 6.
Be2 {[%clk 00:03:00]} Qc7 {[%clk 00:03:08]} 7. Nbd2 {[%clk 00:02:59]} a5 {[%clk
00:03:09]} {[%emt 00:00:08]} 8. c4 {[%clk 00:02:57]} e5 {[%clk 00:03:08]}
{[%emt 00:00:05]} 9. Qc2 {[%clk 00:02:49]} {[%emt 00:00:05]} Be7 {[%clk
00:03:06]} {[%emt 00:00:06]} 10. O-O {[%clk 00:02:37]} {[%emt 00:00:21]} O-O
{[%clk 00:03:06]} 11. Rfe1 {[%clk 00:02:33]} {[%emt 00:00:05]} Rfe8 {[%clk
00:03:07]} 12. e4 {[%clk 00:02:25]} {[%emt 00:00:06]} Bf8 {[%clk 00:03:05]}
{[%emt 00:00:06]} 13. Rad1 {[%clk 00:02:04]} {[%emt 00:00:21]} Bh5 {[%clk
00:03:01]} {[%emt 00:00:06]} 14. Nh4 {[%clk 00:01:50]} {[%emt 00:00:17]} Bg6
{[%clk 00:02:56]} {[%emt 00:00:06]} 15. Nxg6 {[%clk 00:01:50]} hxg6 {[%clk
00:02:58]} {[%emt 00:00:05]} 16. Bf1 {[%clk 00:01:34]} {[%emt 00:00:14]} a4
{[%clk 00:02:57]} {[%emt 00:00:05]} 17. Rc1 {[%clk 00:01:20]} {[%emt 00:00:16]}
axb3 {[%clk 00:02:58]} 18. axb3 {[%clk 00:01:20]} {[%emt 00:00:06]} Qb6 {[%clk
00:02:56]} {[%emt 00:00:04]} 19. c5 {[%clk 00:01:16]} {[%emt 00:00:04]} Qc7
{[%clk 00:02:36]} {[%emt 00:00:21]} 20. b4 {[%clk 00:01:12]} {[%emt 00:00:10]}
exd4 {[%clk 00:02:31]} {[%emt 00:00:13]} 21. Bxd4 {[%clk 00:01:12]} dxc5 {[%clk
00:02:33]} 22. bxc5 {[%clk 00:01:12]} Ng4 {[%clk 00:02:19]} {[%emt 00:00:10]}
23. g3 {[%clk 00:01:12]} {[%emt 00:00:06]} Red8 {[%clk 00:02:05]} {[%emt
00:00:12]} 24. Qc3 {[%clk 00:00:50]} {[%emt 00:00:23]} Nxc5 {[%clk 00:01:48]}
{[%emt 00:00:18]} 25. h3 {[%clk 00:00:46]} {[%emt 00:00:08]} Ne6 {[%clk
00:01:48]} {[%emt 00:00:05]} 26. Nf3 {[%clk 00:00:25]} {[%emt 00:00:19]} Ra3
{[%clk 00:01:45]} {[%emt 00:00:05]} 27. Qb2 {[%clk 00:00:19]} {[%emt 00:00:09]}
Rxf3 {[%clk 00:01:14]} {[%emt 00:00:36]} 28. Bb6 {[%clk 00:00:20]} Qe5 {[%clk
00:01:11]} {[%emt 00:00:04]} 29. Qxe5 {[%clk 00:00:16]} {[%emt 00:00:06]} Nxe5
{[%clk 00:01:12]} 30. Bxd8 {[%clk 00:00:17]} {[%emt 00:00:05]} Nxd8 {[%clk
00:01:14]} 31. Red1 {[%clk 00:00:16]} {[%emt 00:00:05]} Ne6 {[%clk 00:01:15]}
32. Bg2 {[%clk 00:00:16]} Rb3 {[%clk 00:01:13]} {[%emt 00:00:05]} 33. f4 {[%clk
00:00:15]} Nd3 {[%clk 00:01:13]} 34. Rb1 {[%clk 00:00:10]} {[%emt 00:00:11]}
Rxb1 {[%clk 00:01:12]} {[%emt 00:00:07]} 35. Rxb1 {[%clk 00:00:12]} b5 {[%clk
00:01:13]} 36. e5 {[%clk 00:00:10]} Nb4 {[%clk 00:01:10]} {[%emt 00:00:08]} 37.
Rc1 {[%clk 00:00:08]} c5 {[%clk 00:01:09]} {[%emt 00:00:04]} 38. Rb1 {[%clk
00:00:07]} c4 {[%clk 00:01:10]} {[%emt 00:00:08]} 39. Kh2 {[%clk 00:00:05]} c3
{[%clk 00:01:09]} 40. Be4 {[%clk 00:00:06]} c2 {[%clk 00:01:09]} {[%emt
00:00:06]} 41. Rc1 {[%clk 00:00:06]} {[%emt 00:00:04]} Nd4 {[%clk 00:01:11]} 42.
g4 {[%clk 00:00:05]} Na2 {[%clk 00:01:12]} 43. Rxc2 {[%clk 00:00:06]} Nxc2
{[%clk 00:01:13]} 44. Bxc2 {[%clk 00:00:07]} {[%emt 00:00:04]} b4 {[%clk
00:01:14]} 45. f5 {[%clk 00:00:08]} {[%emt 00:00:04]} gxf5 {[%clk 00:01:15]} 46.
gxf5 {[%clk 00:00:09]} Nc1 {[%clk 00:01:16]} {[%emt 00:00:12]} 47. e6 {[%clk
00:00:08]} fxe6 {[%clk 00:01:17]} 48. fxe6 {[%clk 00:00:09]} Be7 {[%clk
00:01:18]} 49. Kg3 {[%clk 00:00:07]} {[%emt 00:00:08]} Ne2+ {[%clk 00:01:18]}
50. Kf2 {[%clk 00:00:06]} {[%emt 00:00:05]} Nd4 {[%clk 00:01:20]} 51. Bb1
{[%clk 00:00:07]} b3 {[%clk 00:01:21]} 52. Ke3 {[%clk 00:00:08]} Nxe6 {[%clk
00:01:21]} 53. Kd3 {[%clk 00:00:07]} {[%emt 00:00:08]} Nc5+ {[%clk 00:01:22]}
54. Kc4 {[%clk 00:00:08]} Kf7 {[%clk 00:01:24]} 55. Kd4 {[%clk 00:03:02]}
{[%emt 00:00:11]} 0-1